Cogmind - Beta 10.1 @@@ ROGUE MODE // 2020.10.01 @ 13:18:55 Player: Cracklepappy Result: Destroyed by as-44644 with Assembled Rifle Performance ------------- Evolutions (0) 0 Regions Visited (3) 600 Robots Destroyed (31) 155 Value Destroyed (682) 682 Prototype IDs (26) 520 Alien Tech Used (0) 0 Bonus (129) 129 TOTAL SCORE: 2086 Bonus ------- Aligned with FarCom 300 Friendly Fire -171 Cogmind --------- Core Integrity 0/250 Matter 252/300 Energy 250/250 System Corruption 0% Temperature Cool (0) Movement Treading (200) Ox2 Location -10/Exiles Parts ------- > --- POWER (1) -------- Ion Engine > --- PROPULSION (2) --- Light Treads Light Treads > --- UTILITY (2) ------ Humpback > --- WEAPON (2) ------- Firepult > --- INVENTORY (24) --- Reinforced Deuterium Engine Fission Core Light Fission Core Light Treads Light Treads Humpback Humpback Humpback Humpback Assault Rifle Heavy Assault Rifle Heavy Assault Rifle Grenade Launcher Signal Generator Peak State ------------ > --- POWER ------------ Ion Engine > --- PROPULSION ------- Light Treads Light Treads > --- UTILITY ---------- Humpback > --- WEAPON ----------- Firepult > --- INVENTORY -------- Reinforced Deuterium Engine Fission Core Light Fission Core Light Treads Light Treads Humpback Humpback Humpback Humpback Assault Rifle Heavy Assault Rifle Heavy Assault Rifle Grenade Launcher Signal Generator [Rating: 28] Favorites ----------- Power Light Ion Engine Engine Light Ion Engine Power Core Light Nuclear Core Propulsion Light Treads Treads Light Treads Wheel Wheel Utility High-capacity Storage Unit Storage High-capacity Storage Unit Weapon Heavy Assault Rifle Energy Cannon Firepult Ballistic Gun Heavy Assault Rifle Launcher Grenade Launcher Build | -11 -10 -10 -10 ------- Run | Scr Mat Min Exi Slots Evolved . | . . . . Power . | . . . . Propulsion . | . . . . Utility . | . . . . Weapon . | . . . . Parts Attached 26 | 7 14 . 5 Power 5 | 1 3 . 1 Engine 3 | 1 1 . 1 Core 2 | . 2 . . Reactor . | . . . . Propulsion 5 | 3 2 . . Treads 3 | 1 2 . . Leg . | . . . . Wheel 2 | 2 . . . Hover . | . . . . Flight . | . . . . Utility 5 | 1 3 . 1 Device . | . . . . Storage 5 | 1 3 . 1 Processor . | . . . . Hackware . | . . . . Protection . | . . . . Artifact . | . . . . Weapon 11 | 2 6 . 3 Energy Gun . | . . . . Energy Cannon 1 | . . . 1 Ballistic Gun 9 | 2 5 . 2 Ballistic Cannon . | . . . . Launcher 1 | . 1 . . Special Weapon . | . . . . Impact Weapon . | . . . . Slashing Weapon . | . . . . Piercing Weapon . | . . . . Special Melee Weapon . | . . . . Unidentified Prototypes . | . . . . Parts Lost 5 | . 5 . . Power 1 | . 1 . . Propulsion 2 | . 2 . . Utility . | . . . . Weapon 2 | . 2 . . Highest Loss Streak 2 | . 2 . . Average Slot Usage (%) 90 | . 93 100 86 Engine 12 | . 9 14 14 Core 1 | . 3 . . Treads 25 | . 20 28 28 Wheel 2 | . 7 . . Storage 20 | . 23 28 16 Ballistic Gun 27 | . 27 28 26 Naked Turns . | . . . . Heaviest Build 107 | 11 75 72 107 Greatest Support 40 | 20 40 40 40 Greatest Overweight (x) 7 | 2 7 1 2 Average Overweight (x) 1 | . 1 1 1 Largest Inventory Capacity 24 | 6 20 20 24 Average Capacity 19 | 5 14 20 22 Most Carried 24 | 6 20 20 24 Average Carried 17 | 2 13 20 20 Final Capacity 24 | 6 20 20 24 Final Carried 20 | 6 20 20 18 Class Distribution -------------------- 81% | Hauler-Mutant 18% | Mutant Dominant Class ---------------- Hauler-Mutant | -10/Materials Hauler-Mutant | -10/Mines Hauler-Mutant | -10/Exiles Resources | -11 -10 -10 -10 ----------- Run | Scr Mat Min Exi Matter Collected 950 | 271 679 . . Remotely . | . . . . Salvage Created 986 | 120 811 . 55 Parts 69 | 9 60 . . Haulers Intercepted 2 | . 2 . . Recyclers Shooed 2 | . 2 . . Parts Field Recycled . | . . . . Retrieved Matter . | . . . . Parts Self-Destructed . | . . . . Prevented . | . . . . Kills | -11 -10 -10 -10 ------- Run | Scr Mat Min Exi Combat Hostiles Destroyed 21 | . 19 . 2 Guns 16 | . 16 . . Cannons 1 | . . . 1 AOE 4 | . 3 . 1 Classes Destroyed 8 | 2 5 . 1 Worker 2 | . 2 . . Tunneler 2 | 2 . . . Hauler 2 | . 2 . . Recycler 1 | 1 . . . Watcher 2 | . 2 . . Swarmer 3 | . 3 . . Grunt 16 | . 16 . . Assembled 2 | . . . 2 Best Kill Streak 3 | 2 3 . 3 Combat Bots Only 3 | . 3 . 2 Max Kills in Single Turn 2 | 1 1 . 2 Gunslinging . | . . . . Exploded 1 | . 1 . 1 Melee . | . . . . Uniques/NPCs Destroyed 1 | . . . 1 EX-DEC (-10/Exiles) Combat | -11 -10 -10 -10 -------- Run | Scr Mat Min Exi Damage Taken 1497 | . 943 . 554 Core 257 | . 178 . 79 Absorbed by Shields . | . . . . Core Remaining (%) 100 | 100 . . . Volleys Fired 98 | 10 85 . 3 Largest 2 | 2 2 . 1 Hottest 250 | 40 46 . 250 Shots Fired 186 | 20 163 . 3 Gun 180 | 20 160 . . Cannon 3 | . . . 3 Launcher 3 | . 3 . . Special . | . . . . Kinetic 180 | 20 160 . . Thermal 3 | . . . 3 Explosive 3 | . 3 . . Electromagnetic . | . . . . Robot Hit Streak 13 | 6 13 . 7 Robot Miss Streak 4 | 2 4 . 4 Penetration Max . | . . . . Secondary Targets . | . . . . Shots Hit Robots 120 | 14 104 . 2 Core Hits 50 | 4 43 . 3 Critical Hits . | . . . . Critical Kills . | . . . . Critical Parts Destroyed . | . . . . Melee Attacks . | . . . . Impact . | . . . . Slashing . | . . . . Piercing . | . . . . Sneak Attacks . | . . . . Combat Hostiles . | . . . . Follow-up Attacks . | . . . . Damage Inflicted 2010 | 140 1693 . 177 Guns 1562 | 140 1422 . . Cannons 55 | . . . 55 Explosions 371 | . 251 . 120 Melee . | . . . . Ramming 22 | . 20 . 2 Kinetic 1562 | 140 1422 . . Thermal 175 | . . . 175 Explosive 251 | . 251 . . Electromagnetic . | . . . . Impact . | . . . . Slashing . | . . . . Piercing . | . . . . Highest Corruption . | . . . . Average Corruption . | . . . . Corruption Purged . | . . . . Overload Shots . | . . . . Overflow Damage 55 | . 33 . 22 Projectiles 21 | . . . 21 Explosions 33 | . 33 . . Melee 1 | . . . 1 Knockbacks 1 | . 1 . . Impact 1 | . 1 . . Kinetic . | . . . . Secondary . | . . . . Self-Inflicted Damage 33 | . 33 . . Shots 3 | . 3 . . Rammed 3 | . 2 . 1 Targets Rammed 3 | . 2 . 1 Kicked . | . . . . Crushed . | . . . . Highest Temperature 420 | . 15 . 420 Average Temperature 85 | . 5 . 212 Received Heat Transfer 483 | . 483 . . Effects 1 | . . . 1 Shutdowns 1 | . . . 1 Siege Activations . | . . . . Robots Corrupted . | . . . . Combat Hostiles . | . . . . Parts Fried . | . . . . Impact Corruptions 1 | . . . 1 Robots Melted 1 | . . . 1 Combat Hostiles . | . . . . Parts Melted 14 | . . . 14 Heat Transferred 960 | . . . 960 Parts Sabotaged . | . . . . Parts Stolen . | . . . . Parts Stripped . | . . . . Power Chain Reactions . | . . . . Missiles Intercepted . | . . . . Alert | -11 -10 -10 -10 ------- Run | Scr Mat Min Exi Peak Influence 298 | 15 298 115 . Initial 115 | . 9 115 . Average 169 | 4 200 115 . Maximum Alert Level 1 | . 1 . . Low Security (%) 57 | 100 40 100 . Level 1 42 | . 59 . . Level 2 . | . . . . Level 3 . | . . . . Level 4 . | . . . . Level 5 . | . . . . High Security . | . . . . Max Security . | . . . . Squads Dispatched 7 | . 6 1 . Investigation 4 | . 4 . . Extermination . | . . . . Reinforcement 2 | . 2 . . Assault 1 | . . 1 . Garrison . | . . . . Intercept . | . . . . Construction Impeded . | . . . . Haulers Reinforced . | . . . . Stealth | -11 -10 -10 -10 --------- Run | Scr Mat Min Exi Distress Signals 1 | . 1 . . Communications Jammed . | . . . . Distress Signals . | . . . . Times Spotted 40 | . 33 . 7 Peak Tracking Total 9 | . 6 . 9 Tactical Retreats 2 | . 2 . . Traps | -11 -10 -10 -10 ------- Run | Scr Mat Min Exi Traps Triggered 3 | . 3 . . Indirectly . | . . . . Trap Hack Attempts . | . . . . Triggered . | . . . . Disarmed . | . . . . Reprogrammed . | . . . . Reused . | . . . . Traps Extracted . | . . . . Installed . | . . . . Triggered . | . . . . Machines | -11 -10 -10 -10 ---------- Run | Scr Mat Min Exi Machines Disabled 4 | . 1 . 3 Max in Single Turn 1 | . 1 . 1 Machines Sabotaged . | . . . . Garrisons Compromised . | . . . . Overloaded Fab Kills . | . . . . Fab Network Shutdowns . | . . . . Hacking | -11 -10 -10 -10 --------- Run | Scr Mat Min Exi Machines Accessed 9 | . 7 . 2 Terminals 5 | . 5 . . Fabricators . | . . . . Repair Stations . | . . . . Recycling Units 2 | . 2 . . Scanalyzers . | . . . . Garrison Access . | . . . . Total Hacks 22 | . 20 . 2 Successful 13 | . 11 . 2 Failed 9 | . 9 . . Catastrophic 3 | . 3 . . Database Lockouts . | . . . . Manual 14 | . 13 . 1 Terminals 17 | . 17 . . Fabricators . | . . . . Repair Stations . | . . . . Recycling Units 3 | . 3 . . Scanalyzers . | . . . . Garrison Access . | . . . . Terminal Hacks 11 | . 9 . 2 Record 1 | . . . 1 Part Schematic 3 | . 3 . . Prototype ID Bank 2 | . 2 . . Locate Traps 2 | . 2 . . Hauler Manifests 1 | . 1 . . Zone Layout 1 | . 1 . . EX-Prototype ID Bank 1 | . . . 1 Fabricator Hacks . | . . . . Repair Station Hacks . | . . . . Recycling Unit Hacks . | . . . . Scanalyzer . | . . . . Garrison Access Hacks . | . . . . Unauthorized Hacks 2 | . 2 . . Terminals . | . . . . Fabricators . | . . . . Repair Stations . | . . . . Recycling Units 2 | . 2 . . Tunnel 2 | . 2 . . Scanalyzers . | . . . . Garrison Access . | . . . . Data Cores Recovered . | . . . . Used . | . . . . Hacking Detections 5 | . 5 . . Full Trace Events . | . . . . Feedback Events . | . . . . Feedback Blocked . | . . . . Robot Schematics Acquired . | . . . . Robots Built . | . . . . Matter . | . . . . Time . | . . . . Total Robot Build Rating . | . . . . Part Schematics Acquired 3 | . 3 . . Parts Built . | . . . . Matter . | . . . . Time . | . . . . Total Part Build Rating . | . . . . Parts Repaired . | . . . . Time . | . . . . Parts Recycled . | . . . . Recycled Matter . | . . . . Retrieved Matter . | . . . . Retrieved Components . | . . . . Parts Scanalyzed . | . . . . Part Schematics Acquired . | . . . . Parts Damaged . | . . . . Bothacking | -11 -10 -10 -10 ------------ Run | Scr Mat Min Exi Used RIF Installer . | . . . . Robots Hacked . | . . . . Non-combat . | . . . . Combat . | . . . . Robot Hacks Applied . | . . . . Relay Couplers Released . | . . . . Robots Rewired . | . . . . Allies Hacked . | . . . . Hacks Repelled . | . . . . Allies | -11 -10 -10 -10 -------- Run | Scr Mat Min Exi Total Allies 1 | . . 1 . Largest Group 1 | . . 1 1 Highest-Rated Group 31 | . . 31 31 Highest-Rated Ally 31 | . . 31 31 Total Orders . | . . . . Ally Attacks 18 | . . . 18 Total Damage 612 | . . . 612 Kills 5 | . . . 5 Allies Corrupted . | . . . . Allies Melted . | . . . . Turrets Deployed 1 | . . . 1 Intel | -11 -10 -10 -10 ------- Run | Scr Mat Min Exi Robot Analysis Total . | . . . . Derelict Logs Recovered . | . . . . Drone Launches . | . . . . Drone Recoveries . | . . . . Exploration | -11 -10 -10 -10 ------------- Run | Scr Mat Min Exi Turns Passed 3227 | 97 1123 349 1658 Spaces Moved 1663 | 57 589 194 823 Core 5 | 5 . . . Treads 1263 | . 246 194 823 Legs . | . . . . Wheels 395 | 52 343 . . Hover . | . . . . Flight . | . . . . Fastest Speed 50 | 50 90 180 160 Average Speed 167 | 89 132 180 194 Slowest Speed 200 | 150 180 180 200 Overloaded Moves . | . . . . Propulsion Burnouts . | . . . . Robots Hopped . | . . . . Cave-ins Triggered . | . . . . Exploration Rate (%) 55 | 4 98 40 78 Regions Visited 3 Branch Regions 2 Pre-discovered Areas 3 | . 2 . 1 Known Exits Taken . | . . . . Unknown Exits Taken 3 | 1 1 1 . Scrap Searched 1 | . . 1 . Spaces Dug . | . . . . Terrain Destroyed 26 | . 21 . 5 Melee . | . . . . Projectile . | . . . . AOE 26 | . 21 . 5 Terrain Rammed . | . . . . Walls Destroyed . | . . . . Machines Disabled . | . . . . Actions | -11 -10 -10 -10 --------- Run | Scr Mat Min Exi Total 1931 | 79 768 195 889 Wait 54 | . 50 . 4 Move 1660 | 56 588 193 823 Hop . | . . . . Pick Up 56 | 5 21 1 29 Fast Attach 12 | 7 4 . 1 Attach 5 | . 4 . 1 Detach 3 | 1 . . 2 Swap 9 | . 6 . 3 Drop 31 | . 8 1 22 Fire 98 | 10 85 . 3 Melee . | . . . . Ram . | . . . . Kick . | . . . . Crush 3 | . 2 . 1 Escape Stasis . | . . . . Rewire . | . . . . Trap . | . . . . Miscellaneous . | . . . . Route ------- -11/Scrapyard -10/Materials (discovered 4 exits: [*Mat x3] / [*Min]) -10/Mines -10/Exiles (discovered 1 exit: [*Min]) History --------- Turn | Location | Event 26 | -11/Scrapyard | Discovered new exit (range 15) 98 | -11/Scrapyard | Entered Materials 242 | -10/Materials | Discovered new exit (range 3) 313 | -10/Materials | Build established: Mutant 375 | -10/Materials | Discovered new exit (range 5) 672 | -10/Materials | Core integrity fell below 50% 873 | -10/Materials | Build established: Hauler-Mutant 1031 | -10/Materials | Discovered new exit (range 9) 1193 | -10/Materials | Discovered new exit (range 11) 1221 | -10/Materials | Entered Mines 1227 | -10/Mines | Met a Derelict bent on vengeance 1382 | -10/Mines | Deemed a non-threat by the Exiles lab entrance 1382 | -10/Mines | Discovered new exit (range 5) 1456 | -10/Mines | Met a Derelict testing a Signal Generator 1472 | -10/Mines | Found Signal Generator 1570 | -10/Mines | Entered Exiles 1570 | -10/Exiles | Accompanied by 1 ally 1617 | -10/Exiles | Met 8R-AWN 1650 | -10/Exiles | Met EX-HEX 1767 | -10/Exiles | Met EX-DEC 1810 | -10/Exiles | Learned location of Zion (-6) 2154 | -10/Exiles | Met EX-BIN 2208 | -10/Exiles | Aligned with FarCom system 2210 | -10/Exiles | Given EX-Vault access code 2258 | -10/Exiles | Opened EX-Vault 2268 | -10/Exiles | Found Modified TNC 2282 | -10/Exiles | Found Flying Fortress v7 2290 | -10/Exiles | Found Firepult 2333 | -10/Exiles | Warned to stay clear of 0b10 Research branches 2456 | -10/Exiles | Visited The Gauntlet 2745 | -10/Exiles | Discovered new exit (range 12) 3179 | -10/Exiles | Attacked by the Exiles 3180 | -10/Exiles | Destroyed EX-DEC 3207 | -10/Exiles | DAS Turret deployed 3210 | -10/Exiles | Core integrity fell below 20% 3228 | -10/Exiles | Destroyed by as-44644 with Assembled Rifle Last Messages --------------- 03190_ EX-BIN: "I just want to science!" 03192_ Machine disabled. 03196_ as-64807 destroyed. 03200_ Slammed into EX-BIN. 03200_ Destroyed EX Chip 2. 03200_ EX-BIN system corrupted by crushing effect. 03201_ Machine disabled. 03207_ DAS Turret deployed. 03207_ as-26287 destroyed. 03208_ as-97503 destroyed. 03210_ as-38328 destroyed. 03214_ WY-A8R(z) destroyed. 03222_ as-87941 knocked back. 03224_ Destroyed Asb. Heavy Rifle. 03226_ as-87941 destroyed. 03227_ HV Slug penetrates 8V-1VZ(g). 03227_ 8V-1VZ(g) suffers critical hit. 03227_ HV Slug penetrates Machine. 03227_ Machine disabled. 03227_ HV Slug penetrates Machine. Map ----- +----------------------------------------------------+ | #######" ###??????????"" ""#???????##" | | """"" ##??????????# #????????##"" | | "###"" ######???### ###?######"" | | "#?##" !!! """#####X# #"###""""""" | | ##??#" !! """""" " "" | | !""""""###???#"# ! "" """ " | | #########?????#### ! " " | | ?????????????????### | | ???????????????????### | | ?????????????????????## | | ??????????????????????## | | ???????????????????????##" % % | | ????????????????????????# % """""" | | ???????????????????????## a######" | | ???????????????????????# ##????## | | ??????????????????????## ##??????? | | ??????????????????????# ##???????? | | ??????????????????????# #????????? | | ?????????????????????## ;#######??# | | ?????????????????????# ## #### | | ?????????????????????## % """ | | ?????????????????????# t g | | ?????????????????????## | | ??????????????????????### | | ????????????????????????# | | ????????????????????????#@""" ""## | | ????????????????????????#"" ""#### | | ????????????????????????#" """"##??# | | ????????????????????????#"" """#??## | | ????????????????????????## ""##??#! | | ?????????????????????????#"" """##???#" | | ?????????????????????????##" g ##????#" | | ??????????????????????????## "" ##?????#!!" | | ???????????????????????????### #??????#### | | ?????????????????????????????##### ##?????????? | | ?????????????????????????????????## #??????????? | | ??????????????????????????????????# #??????????? | | ??????????????????????????????????# #??????????? | | ??????????????????????????????????# #??????????? | | ??????????????????????????????????# #??????????? | | ??????????????????????????????????# #??????????? | | ??????????????????????????????????# #??????????? | | ??????????????????????????????????# #??????????? | | ??????????????????????????????????# #??????????? | | ??????????????????????????????????# #??????????? | | ????????????????????????##"""###### ########???? | | ???????????????????????""" """""" """""""#???? | | ???????????????????????"" "#"" " | | ????????????????????? " " | | ????????????????????? " "? | +----------------------------------------------------+ Best States ------------- Heat Dissipation 25 Energy Generation 14 Energy Capacity 250 Matter Stores 300 Matter Capacity 300 Sight Range 16 Terrain Scan Density 10 Evasion (%) 44 Recoil Reduction 2 Item Schematics ----------------- Hcp. Storage Unit | -10/Materials | Hacked Lrg. Storage Unit | -10/Materials | Hacked Med. Storage Unit | -10/Materials | Hacked Robot Schematics ------------------ None Fabricated ------------ Nothing Alien Tech Used ----------------- None Achievements -------------- None Challenges ------------ None Game ------ Seed ColdPlasmaAmplifier Manual? 0 Play Time 00:17:36 Cumulative 193.0 hours Start 2020.10.01 @ 12:56:27 End 2020.10.01 @ 13:18:55 Sessions 1 Manual Loads 0 Difficulty Rogue Special Mode None Game No. 219 Rogue 219 Adventurer 0 Explorer 0 Win Type - Total 2 Types 2/0/0/0/0/0/0/0/0 Lore% 61 Gallery% 74 Achievement% 56 Wizard Run 0 Options --------- ASCII 0 Keyboard 0 Movement Numpad Keybinds 0 Fullscreen 2 Font 24/Smallcaps Map View 76x50 Tactical HUD 1 Map Filters NONE Filters NONE Steam 1 RUN: 38fcd82b-62d8-466e-8816-27038e074135